bitfinex/quotes_ETHUSD_20240928
["timestamp","ask_amount","ask_price","bid_price","bid_amount"]
[1727534688192,3.73295,2678.9,2678.4,4.50846]
[1727534688688,0.09646799,2678.8,2678.4,4.50846]
[1727534689799,0.09646799,2678.8,2678.4,4.50844]
[1727534690014,3.73288,2678.9,2678.4,4.50844]
[1727534690215,0.0964757,2678.8,2678.4,4.50844]
[1727534690422,3.8295257,2678.8,2678.4,0.7749]
[1727534690796,0.0964757,2678.8,2678.4,4.50845]
[1727534693010,3.8295157,2678.8,2678.4,4.50845]
[1727534693224,3.8295157,2678.8,2678.4,0.7749]
[1727534693699,0.0964757,2678.8,2678.4,4.50846]
[1727534694540,0.0964757,2678.8,2678.5,3.73335]
[1727534694829,3.73278,2679.0,2678.6,0.8186]
[1727534695032,0.09648339,2678.7,2678.6,0.8186]
[1727534695235,3.73278,2679.0,2678.6,0.8186]
[1727534695531,0.09648339,2678.9,2678.6,0.8186]
[1727534697322,3.82935339,2678.9,2678.6,0.8186]
[1727534700416,3.73303,2678.8,2678.6,0.8186]
[1727534700755,0.8147,2678.7,2678.2,3.73382]
[1727534700924,0.91123724,2678.7,2678.3,3.73364]
[1727534701111,0.09653724,2678.7,2678.5,0.8186]
[1727534701312,3.73288,2678.9,2678.5,0.8186]
[1727534701641,0.09654493,2678.6,2678.5,0.8186]
[1727534701854,3.73306,2678.8,2678.5,0.8186]
[1727534702032,0.09654493,2678.6,2678.5,0.8186]
[1727534702454,7.46583,2678.9,2678.5,0.8186]
[1727534702665,0.09654493,2678.6,2678.5,0.8186]
[1727534702828,7.46583,2678.9,2678.5,0.8186]
[1727534703031,0.09654493,2678.8,2678.5,0.8186]
[1727534703647,3.82955493,2678.8,2678.5,0.8186]
[1727534704392,0.09654493,2678.8,2678.5,0.8186]
[1727534711396,3.82958493,2678.8,2678.5,0.8186]
[1727534711692,0.09654493,2678.8,2678.5,0.8186]
[1727534712464,3.82956493,2678.8,2678.5,0.8186]
[1727534714183,3.82956493,2678.8,2678.3,4.56593]
[1727534716582,3.73316,2678.7,2678.3,4.56593]
[1727534716792,3.82963059,2678.7,2678.3,4.56593]
[1727534716980,3.18271539,2678.7,2678.1,0.8323]
[1727534717200,7.4668,2678.6,2678.1,0.8323]
[1727534717707,3.73346,2678.5,2678.1,0.8323]
[1727534717990,3.73346,2678.5,2678.0,3.734]
[1727534717991,0.7609,2678.4,2678.0,3.734]
[1727534718509,0.7609,2678.4,2678.0,7.46806]
[1727534718661,0.09647059,2678.3,2678.0,3.734]
[1727534719283,4.28934165,2678.3,2677.8,3.7343]
[1727534719465,3.83026059,2678.3,2677.8,3.7343]
[1727534721054,3.73386,2678.2,2677.8,3.7343]
[1727534721258,3.73386,2678.2,2677.6,4.56685]
[1727534721489,0.0963321,2678.1,2677.7,3.73452]
[1727534722057,3.8303221,2678.1,2677.6,4.56696]
[1727534722301,3.73415,2678.0,2677.6,0.8323]
[1727534722607,3.83025124,2678.0,2677.6,4.56697]
[1727534722776,3.83025124,2678.0,2677.6,0.8323]
[1727534723498,0.09610124,2678.0,2677.6,4.56697]
[1727534723658,0.09610124,2678.0,2677.6,0.8323]
[1727534724556,5.30340231,2677.9,2677.3,0.8323]
[1727534724760,0.7609,2677.8,2677.3,0.8323]
[1727534724960,0.8564626,2677.8,2677.3,0.8323]
[1727534725391,4.5908826,2677.8,2677.3,4.56737]
[1727534725585,3.73456,2677.7,2677.3,0.8323]
[1727534725862,3.83008412,2677.7,2677.3,0.8323]
[1727534726473,3.83008412,2677.7,2677.2,3.73522]
[1727534726887,3.73468,2677.6,2677.1,0.8323]
[1727534727086,0.7609,2677.5,2677.1,4.56767]
[1727534727485,0.09552412,2677.4,2677.1,4.56767]
[1727534727695,0.09552412,2677.4,2677.1,0.8323]
[1727534728766,0.09552412,2677.4,2677.1,4.56766]
[1727534728979,0.09552412,2677.4,2677.1,7.86894554]
[1727534729306,3.73469,2677.6,2677.1,7.86894554]
[1727534729511,0.09552412,2677.3,2677.1,4.13358554]
[1727534729666,4.49546,2677.7,2677.1,2.40137231]
[1727534729667,3.73485,2677.5,2677.1,2.40137231]
[1727534729862,8.23012,2677.7,2677.1,6.13674231]
[1727534730067,0.09552412,2677.4,2677.1,6.13674231]
[1727534730300,3.7347,2677.6,2677.1,6.13674231]
[1727534730503,0.09552412,2677.3,2677.1,6.13674231]
[1727534730705,3.7347,2677.6,2677.1,7.12395654]
[1727534731003,3.73484,2677.5,2677.1,0.8323]
[1727534731208,0.09552412,2677.4,2677.1,0.8323]
[1727534732968,0.09552412,2677.4,2677.0,3.7354]
[1727534733312,0.85642412,2677.4,2677.0,3.7354]
[1727534734417,1.31555053,2677.4,2677.1,0.01634519]
[1727534734620,3.73524,2677.2,2677.1,0.01634519]
[1727534734993,3.82987883,2677.2,2677.1,0.01634519]
[1727534735713,4.64327883,2677.2,2677.1,0.01634519]
[1727534736022,5.63802494,2677.2,2677.1,0.01634519]
[1727534745508,4.64327883,2677.2,2677.1,0.01634519]
[1727534747859,0.09463883,2677.2,2677.1,0.01634519]
[1727534748009,0.09463883,2677.2,2677.1,0.77954519]
[1727534748211,3.7349,2677.5,2677.1,0.77954519]
[1727534748513,3.82571762,2677.4,2677.1,0.77954519]
[1727534749023,3.82571762,2677.4,2677.1,0.7632]
[1727534749432,7.56079762,2677.4,2677.1,0.7632]
[1727534749637,3.82571762,2677.4,2677.1,0.7632]
[1727534750153,0.09071762,2677.4,2677.1,2.33227231]
[1727534750340,3.82568762,2677.4,2677.1,0.7632]
[1727534750664,0.09071762,2677.3,2677.1,0.7632]
[1727534758564,3.82589762,2677.3,2677.1,0.7632]
[1727534758783,0.09071762,2677.3,2677.1,0.7632]
[1727534758964,3.82583762,2677.3,2677.1,0.7632]
[1727534760366,0.09071762,2677.3,2677.1,0.7632]
[1727534760718,0.09071762,2677.3,2677.1,0.99642723]
[1727534760977,7.46951,2677.6,2677.1,2.56549954]
[1727534761175,3.73486,2677.5,2677.1,2.56549954]
[1727534761380,3.82597814,2677.5,2677.1,2.56549954]
[1727534762243,0.09111814,2677.5,2677.2,0.63009395]
[1727534762451,3.73455,2677.7,2677.3,2.37437231]
[1727534762673,0.09111814,2677.4,2677.3,2.37437231]
[1727534762845,3.73455,2677.7,2677.3,3.07165766]
[1727534763170,0.09111814,2677.6,2677.3,3.07165766]
[1727534768473,0.09111814,2677.6,2677.3,1.50258535]
[1727534769251,3.82581814,2677.6,2677.3,1.50258535]
[1727534769486,0.09111814,2677.6,2677.3,0.8053]
[1727534769783,0.804,2677.8,2677.3,0.8053]
[1727534769991,4.53849,2677.8,2677.3,0.8053]
[1727534770200,0.09137994,2677.7,2677.3,4.54039]
[1727534770392,4.53849,2677.8,2677.3,5.17465895]
[1727534770556,0.09137994,2677.7,2677.3,5.17465895]
[1727534770747,3.73449,2677.8,2677.3,5.17465895]
[1727534771163,0.804,2678.0,2677.5,3.73481]
[1727534771164,0.09137994,2677.7,2677.5,3.73481]
[1727534771364,0.09137994,2677.7,2677.6,0.7832]
[1727534771589,3.73413,2678.0,2677.6,0.7832]
[1727534772102,0.08833394,2677.9,2677.6,0.7832]
[1727534772400,0.08833394,2677.9,2677.6,1.28674759]
[1727534772788,7.44,2678.2,2677.7,2.42695811]
[1727534773104,0.08833394,2678.1,2677.8,3.73431]
[1727534773401,8.27133,2678.4,2677.8,4.71640923]
[1727534773402,4.53766,2678.4,2677.8,4.71640923]
[1727534773602,3.82205394,2678.3,2677.8,4.71640923]
[1727534774188,3.82205394,2678.3,2677.9,0.8094]
[1727534774413,0.08833394,2678.3,2678.0,3.80867227]
[1727534774583,3.73332,2678.6,2678.1,9.84627231]
[1727534774898,0.08868807,2678.5,2678.2,4.71838723]
[1727534775102,0.08868807,2678.5,2678.2,3.73376]
[1727534775311,3.73316,2678.7,2678.2,3.73376]
[1727534775465,0.08868807,2678.4,2678.1,6.11236231]
[1727534775864,3.73316,2678.7,2678.1,6.11236231]
[1727534776065,0.08868807,2678.3,2678.1,6.11236231]
[1727534776264,3.73316,2678.7,2678.2,3.73385]
[1727534776574,3.73316,2678.7,2678.2,4.34508623]
[1727534776779,0.08868807,2678.6,2678.2,4.34508623]
[1727534777906,0.08868807,2678.6,2678.2,0.61123623]
[1727534780509,0.08868807,2678.6,2678.2,4.34506623]
[1727534780715,0.08868807,2678.6,2678.3,1.41913385]
[1727534783306,0.08868807,2678.6,2678.1,9.84626231]
[1727534784641,0.08868807,2678.6,2678.2,3.73372]
[1727534784839,0.08868807,2678.6,2678.3,3.73369]
[1727534785141,4.55595,2678.8,2678.3,3.73369]
[1727534785434,3.73319,2678.7,2678.2,3.73382]
[1727534785647,0.08968878,2678.6,2678.2,4.34505623]
[1727534785942,0.08968878,2678.6,2678.2,4.34499623]
[1727534786244,0.08968878,2678.6,2678.3,0.67234685]
[1727534787138,0.08968878,2678.6,2678.4,0.8185]
[1727534789331,3.73295,2678.9,2678.4,0.8185]
[1727534789534,0.09005815,2678.5,2678.4,4.55204]
[1727534789847,11.17274,2679.0,2678.6,0.8185]
[1727534790207,3.73269,2679.1,2678.6,4.55174]
[1727534790832,3.73269,2679.1,2678.6,0.8185]
[1727534791346,3.73269,2679.1,2678.6,1.90921112]
[1727534792007,7.46537,2679.1,2678.6,1.90921112]
[1727534792214,3.73263,2679.1,2678.4,4.55205]
[1727534792437,0.8268,2679.0,2678.4,4.55205]
[1727534792651,3.73295,2678.9,2678.4,4.55205]
[1727534793426,3.73295,2678.9,2678.4,0.8185]
[1727534793815,3.73302,2678.8,2678.4,0.8185]
[1727534794315,3.73318,2678.7,2678.2,4.55753]
[1727534794518,3.73318,2678.7,2678.2,5.38782623]
[1727534794720,3.73295,2678.9,2678.2,4.65409623]
[1727534794942,3.73308,2678.8,2678.3,3.7337]
[1727534795114,3.82324586,2678.8,2678.3,3.7337]
[1727534795315,3.82324586,2678.8,2678.3,4.77110597]
[1727534797955,0.09016586,2678.8,2678.3,8.50472597]
[1727534798663,0.09016586,2678.8,2678.4,3.73349]
[1727534798840,0.09016586,2678.8,2678.5,3.73341]
[1727534799242,4.55954,2679.0,2678.5,3.73341]
[1727534799429,0.09016586,2678.9,2678.5,3.73341]
[1727534799633,0.09016586,2678.9,2678.6,0.8238]
[1727534799832,4.50006,2679.4,2678.7,0.23928723]
[1727534800171,3.82258355,2679.3,2678.8,3.73297]
[1727534802088,3.82258355,2679.3,2678.9,0.8238]
[1727534802244,3.73246,2679.2,2678.9,0.8238]
[1727534802439,0.0904274,2679.1,2678.9,0.8238]
[1727534802684,3.8230374,2679.1,2678.9,0.8238]
[1727534802967,3.8230374,2679.1,2678.7,4.55693]
[1727534803271,3.8230374,2679.1,2678.7,0.8238]
[1727534805062,3.8230374,2679.1,2678.4,3.73347]
[1727534805063,3.73276,2679.0,2678.5,4.55722]
[1727534805236,3.73276,2679.0,2678.5,0.8238]
[1727534805654,0.0904274,2678.9,2678.5,0.8238]
[1727534805872,3.8233774,2678.9,2678.5,0.8238]
[1727534806171,0.0904274,2678.9,2678.5,0.8238]
[1727534806484,3.73289,2678.9,2678.5,0.8238]
[1727534806769,0.0904274,2678.8,2678.5,4.55717]
[1727534806968,0.0904274,2678.8,2678.5,0.8238]
[1727534807170,5.03969097,2679.1,2678.5,4.55717]
[1727534807171,3.73279,2679.0,2678.5,4.55717]
[1727534807649,0.0904274,2678.9,2678.5,4.55717]
[1727534808052,3.8233274,2678.9,2678.5,0.8238]
[1727534808273,0.0904274,2678.9,2678.5,4.5572]
[1727534808572,3.73277,2679.0,2678.5,4.5572]
[1727534808772,0.0904274,2678.8,2678.5,0.8238]
[1727534809075,0.0904274,2678.7,2678.4,3.73348]
[1727534809288,3.73277,2679.0,2678.5,3.73341]
[1727534809437,0.0904274,2678.6,2678.5,3.73341]
[1727534809636,3.73277,2679.0,2678.5,3.73341]
[1727534809849,0.0904274,2678.9,2678.3,4.5574]
[1727534810050,7.46621,2678.8,2678.3,4.5574]
[1727534810249,0.0904274,2678.7,2678.3,4.5574]
[1727534810450,4.50095,2678.7,2678.2,3.73381]
[1727534810743,0.0904274,2678.6,2678.2,3.73381]
[1727534810956,3.8237274,2678.6,2678.1,6.13301923]
[1727534811272,3.8237274,2678.6,2678.1,6.13299923]
[1727534811438,0.0904274,2678.6,2678.1,6.13299923]
[1727534811641,0.0904274,2678.6,2678.2,3.73382]
[1727534811965,0.0904274,2678.6,2678.3,3.73369]
[1727534813679,0.0904274,2678.6,2678.4,0.8238]
[1727534813855,3.73305,2678.8,2678.4,0.8238]
[1727534814054,0.09028126,2678.7,2678.4,0.8238]
[1727534814257,3.73305,2678.8,2678.4,0.8238]
[1727534814462,0.09028126,2678.7,2678.4,0.8238]
[1727534814653,3.73305,2678.8,2678.4,0.8238]
[1727534814968,0.09028126,2678.7,2678.4,0.8238]
[1727534815387,0.09028126,2678.7,2678.2,0.793]
[1727534815388,0.831,2678.6,2678.2,0.793]
[1727534815687,0.831,2678.6,2678.2,4.52683]
[1727534815688,0.09028126,2678.6,2678.2,4.52683]
[1727534816549,0.09028126,2678.6,2678.2,6.09590231]
[1727534816879,3.73297,2678.9,2678.5,0.793]
[1727534817093,0.09028126,2678.8,2678.5,0.793]
[1727534817790,0.09028126,2678.8,2678.5,4.52636]
[1727534817999,0.09028126,2678.8,2678.5,0.793]
[1727534818166,3.73276,2679.0,2678.5,0.793]
[1727534818369,0.09028126,2678.7,2678.5,0.793]
[1727534818565,3.73276,2679.0,2678.5,0.793]
[1727534818764,0.09028126,2678.6,2678.5,4.52641]
[1727534818988,3.73276,2679.0,2678.5,4.52641]
[1727534819155,0.09028126,2678.6,2678.5,4.52641]
[1727534819494,0.09028126,2678.6,2678.5,0.793]
[1727534819795,3.73288,2678.9,2678.5,0.793]
[1727534819970,0.09028126,2678.6,2678.5,0.793]
[1727534820175,3.73288,2678.9,2678.5,0.793]
[1727534820476,11.17269,2679.1,2678.5,4.979076]
[1727534820657,0.09028126,2679.0,2678.5,4.52643]
[1727534820861,3.82302126,2679.0,2678.5,4.52643]
[1727534821308,3.82302126,2679.0,2678.5,0.793]
[1727534821673,7.55584126,2679.0,2678.5,0.793]
[1727534822003,3.82302126,2679.0,2678.5,0.793]
[1727534822498,3.82302126,2679.0,2678.5,4.52641]
[1727534824802,3.82302126,2679.0,2678.6,0.793]
[1727534825319,3.82302126,2679.0,2678.5,3.73335]
[1727534826613,3.82302126,2679.0,2678.6,0.793]
[1727534827886,7.55584126,2679.0,2678.6,0.793]
[1727534828084,3.82302126,2679.0,2678.6,0.793]
[1727534829177,3.73288,2678.9,2678.6,0.793]
[1727534829376,3.82302126,2679.0,2678.6,0.793]
[1727534829607,0.09061971,2678.8,2678.6,0.793]
[1727534829927,0.09061971,2678.7,2678.6,0.793]
[1727534830283,3.73274,2679.0,2678.6,0.793]
[1727534830489,0.09061971,2678.9,2678.6,0.793]
[1727534830690,3.82350971,2678.9,2678.6,0.793]
[1727534831423,0.09061971,2678.9,2678.6,0.793]
[1727534831994,3.82350971,2678.9,2678.6,0.793]
[1727534833227,0.09061971,2678.9,2678.6,0.793]
[1727534833412,0.09061971,2678.9,2678.6,1.245641]
[1727534833619,0.09061971,2678.9,2678.7,4.52608]
[1727534833791,3.73254,2679.2,2678.7,4.52608]
[1727534833991,0.09061971,2678.8,2678.7,4.52608]
[1727534834331,0.09061971,2678.8,2678.7,5.50891523]
[1727534834489,3.73254,2679.2,2678.7,5.50891523]
[1727534834688,0.09061971,2679.1,2678.7,4.52608]
[1727534835316,0.09061971,2679.1,2678.8,0.7746]
[1727534835527,0.09061971,2679.1,2678.8,3.73297]
[1727534835881,0.09061971,2679.1,2678.9,0.7746]
[1727534835993,3.73232,2679.3,2678.9,0.7746]
[1727534836199,0.09061971,2679.0,2678.9,0.7746]
[1727534836425,3.73232,2679.3,2678.9,0.7746]
[1727534836917,0.09061971,2679.2,2678.9,0.7746]
[1727534837423,3.73246,2679.2,2678.9,0.7746]
[1727534837634,0.09061971,2679.1,2678.9,0.7746]
[1727534838128,3.73245,2679.2,2678.9,0.7746]
[1727534838428,3.73245,2679.2,2678.7,3.73313]
[1727534838429,0.09087353,2679.0,2678.7,0.7746]
[1727534838589,4.55431,2679.1,2678.7,0.7746]
[1727534838927,3.73275,2679.0,2678.7,0.7746]
[1727534839125,3.82362353,2679.0,2678.7,0.7746]
[1727534839333,3.73301,2678.8,2678.5,0.7746]
[1727534839847,0.09087353,2678.7,2678.5,0.7746]
[1727534840051,3.73289,2678.9,2678.5,0.7746]
[1727534840344,5.39304584,2678.8,2678.3,0.7746]
[1727534840563,3.73332,2678.6,2678.3,0.7746]
[1727534841014,0.09069662,2678.5,2678.3,0.7746]
[1727534844064,0.09069662,2678.5,2678.3,4.50829]
[1727534844253,7.30189231,2679.0,2678.4,5.30264231]
[1727534844254,3.73282,2679.0,2678.4,5.30264231]
[1727534844452,4.55423,2679.2,2678.5,3.73331]
[1727534844756,4.55423,2679.2,2678.5,7.46667]
[1727534844757,3.73274,2679.0,2678.5,7.46667]
[1727534845168,3.73274,2679.0,2678.5,3.73331]
[1727534845477,0.0871027,2678.9,2678.5,3.73331]
[1727534846570,0.0871027,2678.9,2678.4,1.56907231]
[1727534846742,0.0871027,2678.9,2678.5,3.73342]
[1727534853350,0.0871027,2678.9,2678.4,5.30264231]
[1727534853351,3.8199927,2678.9,2678.4,5.30264231]
[1727534853973,0.0871027,2678.9,2678.3,4.50821]
[1727534854180,3.73318,2678.7,2678.1,0.7878]
[1727534854338,3.73345,2678.5,2678.1,0.7878]
[1727534854947,0.08723368,2678.4,2678.1,0.7878]
[1727534855789,0.08723368,2678.4,2678.0,3.73412]
[1727534855962,0.83893368,2678.4,2677.9,17.27522231]
[1727534856157,1.29617205,2678.4,2677.9,0.7878]
[1727534856390,3.73372,2678.3,2677.7,3.73446]
[1727534856597,3.73385,2678.2,2677.7,3.73446]
[1727534856891,0.08723368,2678.1,2677.7,3.73446]
[1727534858182,0.08723368,2678.1,2677.7,7.46892]
[1727534858393,3.73372,2678.3,2677.7,7.46892]
[1727534858555,0.08723368,2678.0,2677.7,7.46892]
[1727534858862,0.08670968,2677.9,2677.8,0.98257923]
[1727534859068,3.73372,2678.3,2677.7,7.46892]
[1727534859390,0.08670968,2678.2,2677.8,3.73439]
[1727534859796,3.73372,2678.3,2677.8,3.73439]
[1727534859992,0.08670968,2678.1,2677.8,3.73439]
[1727534860204,4.48495,2678.7,2677.9,4.52203]
[1727534860499,4.48495,2678.7,2678.0,1.56907231]
[1727534860799,4.381885,2678.6,2678.1,3.73398]
[1727534861094,4.48494,2678.7,2678.2,1.56907231]
[1727534861292,4.48494,2678.7,2678.3,0.7878]
[1727534861293,3.73324,2678.7,2678.3,0.7878]
[1727534861493,3.73306,2678.8,2678.3,4.52143]
[1727534861911,12.59439542,2678.9,2678.4,5.30264231]
[1727534862060,11.17287,2678.9,2678.4,5.30264231]
[1727534862756,7.44,2678.9,2678.6,1.56907231]
[1727534862956,3.73263,2679.1,2678.6,1.56907231]
[1727534863156,3.73263,2679.1,2678.6,5.30229231]
[1727534864181,3.73263,2679.1,2678.6,3.73322]
[1727534864780,0.7517,2679.2,2678.8,0.7878]
[1727534864980,0.7517,2679.2,2678.8,4.52074]
[1727534865458,3.73235,2679.3,2678.8,4.52074]
[1727534865658,3.73235,2679.3,2678.8,0.7878]
[1727534866807,8.21624,2679.4,2678.8,4.52074]
[1727534867099,8.21622,2679.4,2678.8,4.52074]
[1727534867471,11.17216,2679.5,2678.9,0.7878]
[1727534867671,3.7322,2679.4,2678.9,4.52059]
[1727534868271,3.7322,2679.4,2678.9,5.76264159]
[1727534868796,6.48365,2679.6,2679.1,3.73252]
[1727534868797,4.48365,2679.6,2679.1,3.73252]
[1727534868966,8.21563,2679.6,2679.1,3.73252]
[1727534869160,5.305213,2679.6,2679.1,3.73252]
[1727534869361,9.037223,2679.6,2679.1,3.73252]
[1727534869607,5.305213,2679.6,2679.1,3.73252]
[1727534869962,5.305213,2679.6,2678.9,5.76261159]
[1727534870158,3.8171905,2679.5,2679.0,3.73271]
[1727534870906,3.8172005,2679.5,2678.9,2.10450142]
[1727534871108,3.8172005,2679.5,2679.0,4.39319677]
[1727534871109,0.0851505,2679.5,2679.0,4.39319677]
[1727534871278,4.48333,2679.8,2679.0,4.39319677]
[1727534871279,8.21504,2679.8,2679.2,3.73245]
[1727534871627,3.8169405,2679.7,2679.1,0.7878]
[1727534871898,3.8169405,2679.7,2679.1,4.52039]
[1727534872610,3.7319,2679.6,2679.1,0.7878]
[1727534872778,3.7319,2679.6,2679.1,1.64577164]
[1727534873118,0.0851505,2679.5,2679.1,1.64577164]
[1727534875118,3.8172105,2679.5,2679.1,1.64577164]
[1727534876392,3.73219,2679.4,2679.1,1.64577164]
[1727534876918,0.0851505,2679.3,2679.1,1.64577164]
[1727534878687,0.0851505,2679.3,2679.1,0.85797164]
[1727534878891,0.0851505,2679.3,2678.9,4.48828]
[1727534880187,0.0851505,2679.3,2678.9,0.7555]
[1727534880414,3.73253,2679.2,2678.7,0.7555]
[1727534880690,3.73253,2679.2,2678.7,2.28924096]
[1727534880889,7.46561,2679.0,2678.7,2.28924096]
[1727534881087,3.7331,2678.8,2678.4,0.7555]
[1727534881291,0.0851505,2678.7,2678.1,0.7555]
[1727534881527,0.7674,2679.0,2678.1,2.28931896]
[1727534881691,3.73322,2678.7,2678.1,5.68795859]
[1727534882035,3.73322,2678.7,2678.2,3.73384]
[1727534882204,0.0851505,2678.6,2678.2,5.04942486]
[1727534882418,3.8184405,2678.6,2678.2,1.31558486]
[1727534883411,0.0851505,2678.6,2678.3,7.88780963]
[1727534883608,0.0851505,2678.6,2678.4,0.92033945]
[1727534883830,3.73306,2678.8,2678.4,0.92033945]
[1727534884027,0.0851505,2678.5,2678.4,0.92033945]
[1727534884228,3.73306,2678.8,2678.4,0.92033945]
[1727534884434,3.73306,2678.8,2678.3,4.15413963]
[1727534884435,0.08445629,2678.5,2678.3,4.15413963]
[1727534884935,0.08164108,2678.4,2678.3,7.88781963]
[1727534885131,3.73306,2678.8,2678.3,0.7555]
[1727534885338,3.73315,2678.7,2678.3,0.7555]
[1727534885507,3.73329,2678.6,2678.1,5.26771896]
[1727534885832,0.08167965,2678.5,2678.1,6.02321896]
[1727534885988,0.08167965,2678.5,2678.2,0.6023219]
[1727534886529,0.08167965,2678.5,2678.2,4.3361619]
[1727534886716,3.73308,2678.8,2678.2,4.3361619]
[1727534886916,3.73308,2678.8,2678.3,0.7555]
[1727534887110,0.08168737,2678.7,2678.3,5.60066809]
[1727534887309,3.73308,2678.8,2678.3,5.60066809]
[1727534887694,0.08168737,2678.7,2678.3,5.60066809]
[1727534888114,0.08168737,2678.6,2678.3,5.60066809]
[1727534888495,0.7674,2679.1,2678.5,10.86539963]
[1727534888641,0.7674,2679.1,2678.6,0.7555]
[1727534888943,0.7674,2679.1,2678.6,4.48876]
[1727534889150,0.08164879,2679.0,2678.7,3.73312]
[1727534889302,3.73253,2679.2,2678.7,4.89519296]
[1727534889503,0.08164879,2679.1,2678.8,0.7555]
[1727534889703,0.08164879,2679.1,2678.8,1.3205693]
[1727534889935,11.93938,2679.6,2678.9,3.39863963]
[1727534890145,4.49938,2679.6,2679.0,3.73264]
[1727534890514,4.49938,2679.6,2679.1,3.73257]
[1727534890745,3.73198,2679.6,2679.1,3.73257]
[1727534890927,4.49909,2679.8,2679.2,4.48787]
[1727534890928,3.73169,2679.8,2679.2,4.48787]
[1727534891438,3.73176,2679.7,2679.2,4.48787]
[1727534892038,3.73169,2679.8,2679.3,3.73227]
[1727534892263,0.7674,2679.9,2679.2,4.48787]
[1727534892469,3.7317,2679.8,2679.2,4.94411152]
[1727534893524,3.7317,2679.8,2679.3,3.73223]
[1727534894526,11.17143,2680.0,2679.4,3.73216]
[1727534894726,3.73143,2680.0,2679.5,3.73193]
[1727534894922,3.73143,2680.0,2679.5,7.46389]
[1727534895150,3.73143,2680.0,2679.5,3.73193]
[1727534896030,3.73122,2680.1,2679.6,4.50778]
[1727534896574,3.73122,2680.1,2679.6,0.7759]
[1727534897265,3.73115,2680.2,2679.6,4.50777]
[1727534897476,3.73115,2680.2,2679.7,3.73172]
[1727534899338,7.4623,2680.2,2679.7,3.73172]
[1727534899532,3.73131,2680.1,2679.6,2.0570363]
[1727534899764,3.73131,2680.1,2679.6,5.7888563]
[1727534900091,0.07784247,2680.0,2679.6,5.7888563]
[1727534900784,0.07784247,2680.0,2679.6,2.0570363]
[1727534901090,0.07784247,2680.0,2679.6,5.7888963]
[1727534902772,0.07784247,2680.0,2679.6,2.0570363]
[1727534902976,0.07784247,2680.0,2679.6,0.7759]
[1727534904521,3.73162,2679.8,2679.3,0.7843]
[1727534904684,3.732,2679.6,2679.3,0.7843]
[1727534905080,0.07784247,2679.5,2679.3,0.7843]
[1727534905519,3.73178,2679.7,2679.3,0.7843]
[1727534905685,0.07784247,2679.4,2679.3,0.7843]
[1727534905887,3.73178,2679.7,2679.3,0.7843]
[1727534906404,0.07768828,2679.6,2679.3,0.7843]
[1727534909822,3.80958828,2679.6,2679.3,0.7843]
[1727534910181,0.07768828,2679.6,2679.3,0.7843]
[1727534910383,7.46346,2679.8,2679.3,0.7843]
[1727534910384,3.73171,2679.8,2679.3,0.7843]
[1727534910618,0.07768828,2679.7,2679.3,0.7843]
[1727534911060,3.73171,2679.8,2679.3,0.7843]
[1727534911196,0.07768828,2679.6,2679.3,0.7843]
[1727534911517,0.07759578,2679.7,2679.3,0.7843]
[1727534911719,7.46342,2679.8,2679.3,0.7843]
[1727534911926,0.07759578,2679.6,2679.3,0.7843]
[1727534912135,7.46342,2679.8,2679.3,0.7843]
[1727534912418,3.80937578,2679.7,2679.3,0.7843]
[1727534913801,0.07759578,2679.7,2679.3,0.7843]
[1727534913990,0.07759578,2679.7,2679.3,1.235963]
[1727534914324,3.73162,2679.8,2679.3,4.968203]
[1727534914498,0.07751868,2679.6,2679.3,1.235963]
[1727534914844,0.0775341,2679.5,2679.3,0.7843]
[1727534915127,0.0775341,2679.5,2679.3,4.51661]
[1727534915305,3.73162,2679.8,2679.3,5.34897317]
[1727534915506,0.0775341,2679.4,2679.3,0.7843]
[1727534915706,7.46332,2679.8,2679.3,0.7843]
[1727534915907,0.0775341,2679.4,2679.3,0.7843]
[1727534916123,7.46332,2679.8,2679.3,1.235968]
[1727534916322,0.0775341,2679.4,2679.3,1.235968]
[1727534916531,7.46333,2679.8,2679.3,1.235968]
[1727534916840,7.46333,2679.8,2679.3,0.7843]
[1727534917126,0.07757265,2679.7,2679.3,0.7843]
[1727534917493,7.46333,2679.8,2679.3,0.7843]
[1727534917729,0.07757265,2679.6,2679.3,0.7843]
[1727534918106,7.46333,2679.8,2679.3,0.7843]
[1727534918596,0.07758036,2679.7,2679.3,0.7843]
[1727534918939,3.73153,2679.9,2679.4,3.73215]
[1727534919106,0.07758036,2679.6,2679.4,3.73215]
[1727534919310,3.73153,2679.9,2679.4,3.73215]
[1727534919510,0.07758036,2679.5,2679.4,4.77539964]
[1727534919837,0.07758807,2679.5,2679.4,4.77539964]
[1727534920131,7.46292,2680.0,2679.4,4.77539964]
[1727534920437,3.73154,2679.9,2679.5,0.61756076]
[1727534920619,3.73154,2679.9,2679.4,3.73215]
[1727534923337,3.73165,2679.8,2679.3,4.51655]
[1727534923742,3.73165,2679.8,2679.3,0.7843]
[1727534924045,3.73165,2679.8,2679.4,3.73216]
[1727534924243,3.73144,2680.0,2679.4,3.73216]
[1727534924404,3.73158,2679.9,2679.4,3.73216]
[1727534926535,3.73171,2679.8,2679.3,0.7843]
[1727534926846,4.53536,2679.7,2679.2,3.73235]
[1727534927139,3.7319,2679.6,2679.1,4.53089]
[1727534928240,3.7319,2679.6,2679.2,3.73245]
[1727534930070,0.07772683,2679.5,2679.2,3.73245]
[1727534930970,0.07772683,2679.5,2679.1,6.102113]
[1727534931473,3.80977683,2679.5,2679.1,2.369653]
[1727534932029,3.80977683,2679.5,2679.1,0.7983]
[1727534932644,0.07772683,2679.5,2679.1,0.7983]
[1727534933835,3.80980683,2679.5,2679.1,0.7983]
[1727534934534,3.80980683,2679.5,2679.0,3.73262]
[1727534935639,3.80980683,2679.5,2679.0,7.46525]
[1727534936174,3.80980683,2679.5,2679.0,3.73262]
[1727534936335,0.07772683,2679.5,2679.1,3.73258]
[1727534937386,3.80976683,2679.5,2679.0,7.46527]
[1727534937587,3.80976683,2679.5,2679.0,3.73262]
[1727534938379,3.7322,2679.4,2678.9,0.8094]
[1727534938674,3.80957988,2679.4,2678.9,4.54217]